[Event "Faroes Open 2018"]
[Site "Sandavagur"]
[Date "2018.07.08"]
[Round "2"]
[White "Ziska, Helgi Dam"]
[Black "Nielsen, Rógvi Egilstoft"]
[Result "1/2-1/2"]
[ECO "C65"]
[WhiteElo "2552"]
[BlackElo "2337"]
[Annotator "ChessBase"]
[PlyCount "68"]
[EventDate "2018.07.07"]
[EventType "swiss"]
[EventCountry "FAI"]
[SourceTitle "playchess.com"]
[Source "ChessBase"]
[SourceQuality "1"]
[TimeControl "40/5400+30:900+30"]

1. e4 {[%emt 0:00:00]} e5 {[%emt 0:00:00]} 2. Nf3 {[%emt 0:00:15]} Nc6 {[%emt 0:00:00]} 3. Bb5 {[%emt 0:00:19]} Nf6 {[%emt 0:00:45]} 4. d3 {[%emt 0:01:54]} Bc5 {[%emt 0:01:00]} 5. Bxc6 {[%emt 0:02:39]} dxc6 {[%emt 0:01:12]} 6. Nc3 {[%emt 0:00:15]} Nd7 {[%emt 0:08:10]} 7. Ne2 {[%emt 0:09:56]} f6 {[%emt 0:02:47]} 8. Be3 {[%emt 0:01:17]} Qe7 {[%emt 0:01:08]} 9. Nd2 {[%emt 0:14:20]} Nf8 {[%emt 0:02:06]} 10. Ng3 {[%emt 0:03:05]} g6 {[%emt 0:07:15]} 11. Nb3 {[%emt 0:14:28]} Bb6 {[%emt 0:03:53]} 12. Qd2 {[%emt 0:07:47]} Ne6 {[%emt 0:06:12]} 13. Ne2 {[%emt 0:00:54]} a5 {[%emt 0:07:32]} 14. Bxb6 {[%emt 0:04:39]} cxb6 {[%emt 0:00:07]} 15. Qe3 {[%emt 0:00:12]} Qb4+ {[%emt 0:03:46]} 16. c3 {[%emt 0:01:16]} Qb5 {[%emt 0:00:36]} 17. O-O {[%emt 0:02:13]} O-O {[%emt 0:05:08]} 18. d4 {[%emt 0:05:21]} Rd8 {[%emt 0:06:43]} 19. Nd2 {[%emt 0:01:56]} Qxb2 {[%emt 0:07:44]} 20. Rfb1 {[%emt 0:01:25]} Qc2 {[%emt 0:00:24]} 21. Rxb6 {[%emt 0:00:50]} Nf4 {[%emt 0:01:09]} 22. Kf1 {[%emt 0:05:06]} Nxe2 {[%emt 0:05:10]} 23. Kxe2 {[%emt 0:00:05]} f5 {[%emt 0:01:23]} 24. Qd3 {[%emt 0:06:10]} Qxd3+ {[%emt 0:01:20]} 25. Kxd3 {[%emt 0:00:06]} fxe4+ {[%emt 0:05:35]} 26. Ke3 {[%emt 0:01:51]} exd4+ {[%emt 0:03:04]} 27. cxd4 {[%emt 0:00:07]} a4 {[%emt 0:00:12]} 28. Nxe4 {[%emt 0:02:02]} a3 {[%emt 0:03:03]} 29. Nc5 {[%emt 0:01:00]} Re8+ {[%emt 0:00:54]} 30. Kd2 {[%emt 0:00:16]} Rd8 {[%emt 0:02:15]} 31. Kc3 {[%emt 0:00:48]} Re8 {[%emt 0:00:30]} 32. Kd2 {[%emt 0:04:30]} Rd8 {[%emt 0:05:08]} 33. Ke3 {[%emt 0:00:45]} Re8+ {[%emt 0:00:26]} 34. Kd2 {[%emt 0:00:43]} Rd8 1/2-1/2

[Event "Faroes Open 2018"]
[Site "Sandavagur"]
[Date "2018.07.08"]
[Round "2"]
[White "Narayanan, Srinath"]
[Black "Tummasarson, Flóvin Matras"]
[Result "1-0"]
[ECO "C64"]
[WhiteElo "2549"]
[BlackElo "1237"]
[Annotator "ChessBase"]
[PlyCount "59"]
[EventDate "2018.07.07"]
[EventType "swiss"]
[EventCountry "FAI"]
[SourceTitle "playchess.com"]
[Source "ChessBase"]
[SourceQuality "1"]
[TimeControl "40/5400+30:900+30"]

1. e4 {[%emt 0:05:15]} e5 {[%emt 0:00:00]} 2. Nf3 {[%emt 0:00:03]} Nc6 {[%emt 0:00:01]} 3. Bb5 {[%emt 0:00:04]} Bc5 {[%emt 0:01:19]} 4. O-O {[%emt 0:00:15]} a6 {[%emt 0:00:58]} 5. Bxc6 {[%emt 0:00:20]} dxc6 {[%emt 0:01:54]} 6. Nxe5 {[%emt 0:00:05]} Nf6 {[%emt 0:00:50]} 7. d3 {[%emt 0:00:37]} O-O {[%emt 0:05:29]} 8. Nd2 {[%emt 0:04:35]} Re8 {[%emt 0:02:55]} 9. Nef3 {[%emt 0:00:10]} Bg4 {[%emt 0:01:12]} 10. Re1 {[%emt 0:00:14]} Nd7 {[%emt 0:02:12]} 11. h3 {[%emt 0:00:21]} Bxf3 {[%emt 0:02:04]} 12. Nxf3 {[%emt 0:00:06]} Ne5 {[%emt 0:01:52]} 13. Nxe5 {[%emt 0:02:13]} Rxe5 {[%emt 0:00:46]} 14. c3 {[%emt 0:00:05]} Re6 {[%emt 0:04:20]} 15. d4 {[%emt 0:00:16]} Bf8 {[%emt 0:02:41]} 16. Bf4 {[%emt 0:02:00]} Qd7 {[%emt 0:07:14]} 17. Qb3 {[%emt 0:00:55]} b5 {[%emt 0:02:13]} 18. Re3 {[%emt 0:00:26]} c5 {[%emt 0:03:41]} 19. d5 {[%emt 0:00:12]} Rb6 {[%emt 0:02:16]} 20. Rd1 {[%emt 0:01:12]} Re8 {[%emt 0:04:43]} 21. Qc2 {[%emt 0:01:27]} f6 {[%emt 0:02:08]} 22. Bg3 {[%emt 0:01:22]} c4 {[%emt 0:03:44]} 23. Re2 {[%emt 0:00:27]} Kh8 {[%emt 0:07:40]} 24. f4 {[%emt 0:00:15]} Rd8 {[%emt 0:03:37]} 25. e5 {[%emt 0:02:03]} fxe5 {[%emt 0:05:09]} 26. fxe5 {[%emt 0:00:05]} Rg6 {[%emt 0:01:22]} 27. Kh2 {[%emt 0:00:06]} c6 {[%emt 0:02:18]} 28. e6 {[%emt 0:03:49]} Qe8 {[%emt 0:03:51]} 29. e7 {[%emt 0:07:27]} Bxe7 {[%emt 0:03:13]} 30. Rde1 {[%emt 0:01:41]} 1-0

[Event "Faroes Open 2018"]
[Site "Sandavagur"]
[Date "2018.07.08"]
[Round "2"]
[White "Greenfeld, Alon"]
[Black "Nilssen, John Arni"]
[Result "1-0"]
[ECO "D31"]
[WhiteElo "2496"]
[BlackElo "2301"]
[Annotator "ChessBase"]
[PlyCount "39"]
[EventDate "2018.07.07"]
[EventType "swiss"]
[EventCountry "FAI"]
[SourceTitle "playchess.com"]
[Source "ChessBase"]
[SourceQuality "1"]
[TimeControl "40/5400+30:900+30"]

1. d4 {[%emt 0:02:24]} d5 {[%emt 0:00:00]} 2. c4 {[%emt 0:00:31]} e6 {[%emt 0:00:00]} 3. Nc3 {[%emt 0:01:00]} c6 {[%emt 0:00:00]} 4. Nf3 {[%emt 0:03:01]} dxc4 {[%emt 0:01:52]} 5. e4 {[%emt 0:01:10]} b5 {[%emt 0:01:53]} 6. Be2 {[%emt 0:01:42]} Nf6 {[%emt 0:07:42]} 7. O-O {[%emt 0:02:01]} b4 {[%emt 0:05:12]} 8. e5 {[%emt 0:01:20]} bxc3 {[%emt 0:07:00]} 9. exf6 {[%emt 0:00:12]} Qxf6 {[%emt 0:13:49]} 10. bxc3 {[%emt 0:02:04]} Bd6 {[%emt 0:01:34]} 11. Ng5 {[%emt 0:16:34]} Bf4 {[%emt 0:11:47]} 12. Ne4 {[%emt 0:03:15]} Bxh2+ {[%emt 0:07:43]} 13. Kxh2 {[%emt 0:00:18]} Qh4+ {[%emt 0:00:05]} 14. Kg1 {[%emt 0:00:04]} Qxe4 {[%emt 0:00:05]} 15. Ba3 {[%emt 0:00:15]} Qd5 {[%emt 0:03:14]} 16. Qa4 {[%emt 0:15:14]} Ba6 {[%emt 0:05:19]} 17. Rfb1 {[%emt 0:02:18]} Bb5 {[%emt 0:01:04]} 18. Qa5 {[%emt 0:03:43]} a6 {[%emt 0:03:56]} 19. Bf3 {[%emt 0:02:37]} Qg5 {[%emt 0:03:41]} 20. Rxb5 {[%emt 0:06:02]} 1-0

[Event "Faroes Open 2018"]
[Site "Sandavagur"]
[Date "2018.07.08"]
[Round "2"]
[White "Nakar, Eylon"]
[Black "Simonsen, Hans Kristian"]
[Result "1-0"]
[ECO "B48"]
[WhiteElo "2462"]
[BlackElo "2150"]
[Annotator "ChessBase"]
[PlyCount "49"]
[EventDate "2018.07.07"]
[EventType "swiss"]
[EventCountry "FAI"]
[SourceTitle "playchess.com"]
[Source "ChessBase"]
[SourceQuality "1"]
[TimeControl "40/5400+30:900+30"]

1. e4 {[%emt 0:00:00]} c5 {[%emt 0:00:00]} 2. Nf3 {[%emt 0:00:00]} e6 {[%emt 0:00:01]} 3. d4 {[%emt 0:00:10]} cxd4 {[%emt 0:00:11]} 4. Nxd4 {[%emt 0:00:04]} Nc6 {[%emt 0:00:20]} 5. Nc3 {[%emt 0:00:05]} Qc7 {[%emt 0:00:21]} 6. Be3 {[%emt 0:00:20]} a6 {[%emt 0:00:11]} 7. Qf3 {[%emt 0:00:23]} Ne5 {[%emt 0:00:43]} 8. Qg3 {[%emt 0:00:18]} b5 {[%emt 0:00:07]} 9. O-O-O {[%emt 0:04:46]} Nf6 {[%emt 0:01:48]} 10. f4 {[%emt 0:08:31]} Neg4 {[%emt 0:00:36]} 11. Bd2 {[%emt 0:06:57]} b4 {[%emt 0:01:53]} 12. Na4 {[%emt 0:01:35]} h5 {[%emt 0:00:55]} 13. Qe1 {[%emt 0:24:36]} Bb7 {[%emt 0:05:57]} 14. h3 {[%emt 0:03:03]} Nh6 {[%emt 0:01:26]} 15. Bd3 {[%emt 0:00:49]} a5 {[%emt 0:07:08]} 16. Kb1 {[%emt 0:00:46]} Be7 {[%emt 0:01:14]} 17. Rf1 {[%emt 0:22:01]} Bc6 {[%emt 0:05:29]} 18. Nxc6 {[%emt 0:01:50]} Qxc6 {[%emt 0:00:07]} 19. b3 {[%emt 0:01:29]} g6 {[%emt 0:04:32]} 20. f5 {[%emt 0:03:53]} gxf5 {[%emt 0:04:21]} 21. exf5 {[%emt 0:00:07]} Rc8 {[%emt 0:02:51]} 22. fxe6 {[%emt 0:00:23]} dxe6 {[%emt 0:00:07]} 23. Qe5 {[%emt 0:02:03]} Qd5 {[%emt 0:00:50]} 24. Bb5+ {[%emt 0:00:22]} Kf8 {[%emt 0:01:09]} 25. Bxh6+ {[%emt 0:00:09]} 1-0

[Event "Faroes Open 2018"]
[Site "Sandavagur"]
[Date "2018.07.08"]
[Round "2"]
[White "Jotic, Vladimir"]
[Black "Jones, Gawain C B"]
[Result "0-1"]
[ECO "A25"]
[WhiteElo "2387"]
[BlackElo "2670"]
[Annotator "ChessBase"]
[PlyCount "62"]
[EventDate "2018.07.07"]
[EventType "swiss"]
[EventCountry "FAI"]
[SourceTitle "playchess.com"]
[Source "ChessBase"]
[SourceQuality "1"]
[TimeControl "40/5400+30:900+30"]

1. g3 {[%emt 0:04:02]} g6 {[%emt 0:01:26]} 2. Bg2 {[%emt 0:00:09]} Bg7 {[%emt 0:00:08]} 3. c4 {[%emt 0:02:53]} Nc6 {[%emt 0:02:40]} 4. Nc3 {[%emt 0:00:58]} e5 {[%emt 0:00:19]} 5. d3 {[%emt 0:04:48]} Nf6 {[%emt 0:01:18]} 6. Nf3 {[%emt 0:02:48]} O-O {[%emt 0:01:10]} 7. O-O {[%emt 0:08:16]} d6 {[%emt 0:00:51]} 8. Rb1 {[%emt 0:03:41]} a5 {[%emt 0:01:33]} 9. a3 {[%emt 0:00:11]} h6 {[%emt 0:00:07]} 10. b4 {[%emt 0:00:12]} axb4 {[%emt 0:00:09]} 11. axb4 {[%emt 0:00:01]} Be6 {[%emt 0:00:12]} 12. b5 {[%emt 0:02:32]} Ne7 {[%emt 0:00:09]} 13. Qb3 {[%emt 0:01:23]} Nd7 {[%emt 0:04:23]} 14. Bb2 {[%emt 0:06:04]} Nc5 {[%emt 0:04:16]} 15. Qc2 {[%emt 0:00:56]} Qd7 {[%emt 0:00:54]} 16. Rfe1 {[%emt 0:10:37]} Bh3 {[%emt 0:07:48]} 17. Bh1 {[%emt 0:01:03]} c6 {[%emt 0:00:45]} 18. Ra1 {[%emt 0:04:14]} Qc7 {[%emt 0:14:04]} 19. Nd2 {[%emt 0:14:10]} Ne6 {[%emt 0:04:43]} 20. e3 {[%emt 0:01:10]} Rxa1 {[%emt 0:02:19]} 21. Rxa1 {[%emt 0:00:19]} d5 {[%emt 0:02:06]} 22. bxc6 {[%emt 0:09:58]} bxc6 {[%emt 0:01:11]} 23. Ne2 {[%emt 0:06:42]} Qd7 {[%emt 0:08:45]} 24. Nf3 {[%emt 0:04:25]} d4 {[%emt 0:01:21]} 25. exd4 {[%emt 0:00:42]} exd4 {[%emt 0:00:09]} 26. Nd2 {[%emt 0:00:35]} g5 {[%emt 0:10:15]} 27. Qa4 {[%emt 0:02:43]} Rb8 {[%emt 0:08:50]} 28. Ba3 {[%emt 0:00:24]} Qc7 {[%emt 0:00:21]} 29. Re1 {[%emt 0:03:50]} c5 {[%emt 0:00:58]} 30. Nc1 {[%emt 0:00:14]} Ng6 {[%emt 0:01:37]} 31. Qc6 {[%emt 0:01:30]} Qa5 {[%emt 0:01:06]} 0-1

[Event "Faroes Open 2018"]
[Site "Sandavagur"]
[Date "2018.07.08"]
[Round "2"]
[White "Haubro, Martin"]
[Black "Vavulin, Maksim"]
[Result "1-0"]
[ECO "C70"]
[WhiteElo "2373"]
[BlackElo "2552"]
[Annotator "ChessBase"]
[PlyCount "113"]
[EventDate "2018.07.07"]
[EventType "swiss"]
[EventCountry "FAI"]
[SourceTitle "playchess.com"]
[Source "ChessBase"]
[SourceQuality "1"]
[TimeControl "40/5400+30:900+30"]

1. e4 {[%emt 0:01:22]} e5 {[%emt 0:00:00]} 2. Nf3 {[%emt 0:00:05]} Nc6 {[%emt 0:00:00]} 3. Bb5 {[%emt 0:00:03]} a6 {[%emt 0:00:00]} 4. Ba4 {[%emt 0:00:04]} b5 {[%emt 0:01:30]} 5. Bb3 {[%emt 0:00:06]} Na5 {[%emt 0:00:04]} 6. O-O {[%emt 0:19:59]} d6 {[%emt 0:00:23]} 7. d4 {[%emt 0:00:39]} f6 {[%emt 0:03:05]} 8. Bxg8 {[%emt 0:15:41]} Rxg8 {[%emt 0:00:06]} 9. Nbd2 {[%emt 0:00:04]} Bg4 {[%emt 0:06:31]} 10. c3 {[%emt 0:00:27]} Qd7 {[%emt 0:05:33]} 11. a4 bxa4 {[%emt 0:11:40]} 12. Qxa4 {[%emt 0:12:37]} Qxa4 {[%emt 0:04:34]} 13. Rxa4 {[%emt 0:00:05]} Nb7 {[%emt 0:00:07]} 14. d5 {[%emt 0:03:18]} Be7 {[%emt 0:04:24]} 15. b4 {[%emt 0:03:17]} Bd7 {[%emt 0:01:15]} 16. Ra2 {[%emt 0:00:14]} f5 {[%emt 0:09:25]} 17. c4 {[%emt 0:06:41]} g5 {[%emt 0:02:49]} 18. Ba3 {[%emt 0:07:59]} g4 {[%emt 0:15:11]} 19. Ne1 {[%emt 0:00:04]} Bg5 {[%emt 0:02:12]} 20. Nd3 {[%emt 0:01:04]} Kf7 {[%emt 0:10:16]} 21. Re1 {[%emt 0:00:27]} Rge8 {[%emt 0:02:29]} 22. exf5 {[%emt 0:01:34]} Bxf5 {[%emt 0:03:36]} 23. Ne4 {[%emt 0:00:06]} Bh6 {[%emt 0:00:03]} 24. Bb2 {[%emt 0:05:11]} Bg7 {[%emt 0:03:32]} 25. Kf1 {[%emt 0:05:44]} Kg6 {[%emt 0:04:16]} 26. c5 {[%emt 0:01:12]} Bxe4 {[%emt 0:03:09]} 27. Rxe4 {[%emt 0:00:09]} Kf5 {[%emt 0:00:02]} 28. Rc4 {[%emt 0:04:40]} Bf8 {[%emt 0:02:08]} 29. c6 {[%emt 0:00:23]} Nd8 {[%emt 0:00:08]} 30. b5 {[%emt 0:04:51]} Nf7 {[%emt 0:04:54]} 31. Rxa6 {[%emt 0:02:11]} Rab8 {[%emt 0:00:37]} 32. Rb4 {[%emt 0:00:36]} e4 {[%emt 0:00:08]} 33. Ne1 {[%emt 0:00:22]} e3 {[%emt 0:00:08]} 34. fxe3 {[%emt 0:03:41]} Bh6 {[%emt 0:00:59]} 35. Nc2 {[%emt 0:01:58]} Bxe3 {[%emt 0:00:27]} 36. Nxe3+ {[%emt 0:00:23]} Rxe3 {[%emt 0:00:02]} 37. Raa4 {[%emt 0:00:22]} Ne5 {[%emt 0:02:13]} 38. Rf4+ {[%emt 0:00:27]} Kg6 {[%emt 0:00:25]} 39. Kf2 {[%emt 0:00:41]} Rd3 {[%emt 0:00:34]} 40. Bxe5 {[%emt 0:00:31]} dxe5 {[%emt 0:00:04]} 41. Rxg4+ {[%emt 0:01:17]} Kf5 {[%emt 0:02:13]} 42. Rgb4 {[%emt 0:00:54]} Rxd5 {[%emt 0:00:49]} 43. Ra7 {[%emt 0:00:15]} Rd2+ {[%emt 0:01:50]} 44. Ke3 {[%emt 0:01:17]} Rbd8 45. Rb3 {[%emt 0:00:30]} Rxg2 46. Rxc7 {[%emt 0:00:30]} Rdd2 47. Rf7+ {[%emt 0:00:30]} Kg6 48. Rf1 {[%emt 0:00:30]} Rge2+ 49. Kf3 {[%emt 0:00:30]} Rxh2 50. Ke4 {[%emt 0:00:30]} Rhe2+ 51. Re3 {[%emt 0:00:30]} Rg2 52. c7 {[%emt 0:00:30]} Rc2 53. b6 {[%emt 0:00:30]} Rg4+ 54. Kxe5 {[%emt 0:00:30]} h5 55. b7 {[%emt 0:00:30]} Rg5+ 56. Kd6 {[%emt 0:00:30]} Rd2+ 57. Ke7 {[%emt 0:00:30]} 1-0

[Event "Faroes Open 2018"]
[Site "Sandavagur"]
[Date "2018.07.08"]
[Round "2"]
[White "Rødgaard, John"]
[Black "Kunin, Vitaly"]
[Result "1/2-1/2"]
[ECO "A41"]
[WhiteElo "2319"]
[BlackElo "2538"]
[Annotator "ChessBase"]
[PlyCount "208"]
[EventDate "2018.07.07"]
[EventType "swiss"]
[EventCountry "FAI"]
[SourceTitle "playchess.com"]
[Source "ChessBase"]
[SourceQuality "1"]
[TimeControl "40/5400+30:900+30"]

1. Nf3 {[%emt 0:02:10]} d6 {[%emt 0:01:32]} 2. d4 {[%emt 0:01:16]} Bg4 {[%emt 0:00:12]} 3. c4 {[%emt 0:04:38]} Nf6 {[%emt 0:01:03]} 4. Qb3 {[%emt 0:04:45]} Qc8 {[%emt 0:01:17]} 5. Bf4 {[%emt 0:05:55]} g6 {[%emt 0:04:08]} 6. Nbd2 {[%emt 0:06:53]} Bg7 {[%emt 0:00:40]} 7. h3 {[%emt 0:06:32]} Bxf3 {[%emt 0:06:48]} 8. Nxf3 {[%emt 0:01:21]} O-O {[%emt 0:00:14]} 9. e3 {[%emt 0:00:35]} Nfd7 {[%emt 0:00:26]} 10. Be2 {[%emt 0:05:00]} e5 {[%emt 0:00:36]} 11. dxe5 {[%emt 0:01:11]} dxe5 {[%emt 0:00:12]} 12. Bh2 {[%emt 0:00:50]} e4 {[%emt 0:13:25]} 13. Nd2 {[%emt 0:05:55]} Nc5 {[%emt 0:00:49]} 14. Qc2 {[%emt 0:07:01]} Nc6 {[%emt 0:02:50]} 15. a3 {[%emt 0:16:43]} Nd3+ {[%emt 0:09:34]} 16. Bxd3 {[%emt 0:02:02]} exd3 {[%emt 0:00:09]} 17. Qxd3 {[%emt 0:01:12]} Bxb2 {[%emt 0:00:41]} 18. Rb1 {[%emt 0:02:12]} Rd8 {[%emt 0:02:11]} 19. Qb3 {[%emt 0:00:53]} Be5 {[%emt 0:07:34]} 20. Nf3 {[%emt 0:02:46]} Bxh2 {[%emt 0:01:26]} 21. Nxh2 {[%emt 0:00:11]} Qe6 {[%emt 0:19:33]} 22. O-O {[%emt 0:00:47]} b6 {[%emt 0:00:47]} 23. c5 {[%emt 0:06:26]} Qxb3 {[%emt 0:01:02]} 24. Rxb3 {[%emt 0:00:02]} Na5 {[%emt 0:00:56]} 25. Rc3 {[%emt 0:06:54]} b5 {[%emt 0:00:44]} 26. c6 {[%emt 0:02:07]} Nc4 {[%emt 0:04:17]} 27. Nf3 {[%emt 0:00:45]} Nb6 {[%emt 0:04:01]} 28. Nd4 {[%emt 0:00:40]} a6 {[%emt 0:00:08]} 29. g4 {[%emt 0:01:39]} Rd5 {[%emt 0:01:04]} 30. Kg2 {[%emt 0:00:10]} Re8 {[%emt 0:00:47]} 31. Kf3 {[%emt 0:00:20]} h5 {[%emt 0:01:12]} 32. Rfc1 {[%emt 0:00:42]} Nc4 {[%emt 0:03:00]} 33. R1c2 {[%emt 0:00:41]} hxg4+ {[%emt 0:01:15]} 34. hxg4 {[%emt 0:00:02]} Kg7 {[%emt 0:04:15]} 35. a4 {[%emt 0:01:28]} Ne5+ {[%emt 0:00:38]} 36. Kg3 {[%emt 0:01:07]} b4 {[%emt 0:02:29]} 37. Rc5 {[%emt 0:00:09]} Red8 {[%emt 0:00:45]} 38. Rxd5 {[%emt 0:01:56]} Rxd5 {[%emt 0:00:03]} 39. f4 {[%emt 0:01:14]} Nd3 {[%emt 0:00:30]} 40. Nb3 {[%emt 0:02:02]} Ne1 {[%emt 0:03:32]} 41. Rc4 {[%emt 0:04:03]} Rd3 {[%emt 0:04:16]} 42. Rxb4 Rxe3+ {[%emt 0:00:30]} 43. Kf2 Re6 {[%emt 0:00:30]} 44. Rc4 Nd3+ {[%emt 0:00:30]} 45. Kf3 Nb2 {[%emt 0:00:30]} 46. Rc2 Nd1 {[%emt 0:00:30]} 47. Nc1 Re3+ {[%emt 0:00:30]} 48. Kg2 Ra3 {[%emt 0:00:30]} 49. Rd2 Ne3+ {[%emt 0:00:30]} 50. Kf3 Nc2+ {[%emt 0:00:30]} 51. Kf2 Nb4 {[%emt 0:00:30]} 52. Ne2 Nxc6 {[%emt 0:00:30]} 53. Rc2 Nb4 {[%emt 0:00:30]} 54. Rxc7 Nd3+ {[%emt 0:00:30]} 55. Ke3 Nc5+ {[%emt 0:00:30]} 56. Kf2 Ne4+ {[%emt 0:00:30]} 57. Kg2 Rxa4 {[%emt 0:00:30]} 58. Kf3 Nf6 {[%emt 0:00:30]} 59. g5 Nd5 {[%emt 0:00:30]} 60. Rd7 Ra3+ {[%emt 0:00:30]} 61. Kf2 Rd3 {[%emt 0:00:30]} 62. Ra7 Nb4 {[%emt 0:00:30]} 63. Ng3 Rd4 {[%emt 0:00:30]} 64. Kf3 Nd5 {[%emt 0:00:30]} 65. Ne2 Rd3+ {[%emt 0:00:30]} 66. Ke4 Rd2 {[%emt 0:00:30]} 67. Ng3 Nc3+ {[%emt 0:00:30]} 68. Ke3 Rg2 {[%emt 0:00:30]} 69. Kf3 Ra2 {[%emt 0:00:30]} 70. Kg4 Ra4 {[%emt 0:00:30]} 71. Kf3 Nb5 {[%emt 0:00:30]} 72. Rd7 Nd4+ {[%emt 0:00:30]} 73. Ke3 Ne6 {[%emt 0:00:30]} 74. Ne2 a5 {[%emt 0:00:30]} 75. Ra7 Ra3+ {[%emt 0:00:30]} 76. Ke4 Ra2 {[%emt 0:00:30]} 77. Nc3 Rc2 {[%emt 0:00:30]} 78. Nd5 Rc4+ {[%emt 0:00:30]} 79. Ke5 Nd4 {[%emt 0:00:30]} 80. Ra8 Nf3+ {[%emt 0:00:30]} 81. Kd6 Re4 {[%emt 0:00:30]} 82. Nf6 Re6+ {[%emt 0:00:30]} 83. Kd5 Rxf6 {[%emt 0:00:30]} 84. gxf6+ Kxf6 {[%emt 0:00:30]} 85. Ke4 Nd2+ {[%emt 0:00:30]} 86. Kd3 Nb3 {[%emt 0:00:30]} 87. Kc4 Nc1 {[%emt 0:00:30]} 88. Re8 a4 {[%emt 0:00:30]} 89. Kd4 a3 {[%emt 0:00:30]} 90. Re1 Nb3+ {[%emt 0:00:30]} 91. Kc4 Nd2+ {[%emt 0:00:30]} 92. Kd3 Nf3 {[%emt 0:00:30]} 93. Ra1 Kf5 {[%emt 0:00:30]} 94. Ke3 Kg4 {[%emt 0:00:30]} 95. Rxa3 Nh4 {[%emt 0:00:30]} 96. Ke4 Ng2 {[%emt 0:00:30]} 97. Ke5 Nxf4 {[%emt 0:00:30]} 98. Kf6 g5 {[%emt 0:00:30]} 99. Ra5 Nh3 {[%emt 0:00:30]} 100. Kxf7 Kh4 {[%emt 0:00:30]} 101. Kf6 g4 {[%emt 0:00:30]} 102. Kf5 Nf2 {[%emt 0:00:30]} 103. Ra4 Kh3 {[%emt 0:00:30]} 104. Rxg4 Nxg4 {[%emt 0:00:30]} 1/2-1/2

[Event "Faroes Open 2018"]
[Site "Sandavagur"]
[Date "2018.07.08"]
[Round "2"]
[White "Nilssen, Ellen Fredericia"]
[Black "Esteve Sanchez, Sergio"]
[Result "1/2-1/2"]
[ECO "D36"]
[WhiteElo "2152"]
[BlackElo "1994"]
[Annotator "NA"]
[PlyCount "87"]
[EventDate "2018.07.07"]
[EventType "swiss"]
[EventCountry "FAI"]
[SourceTitle "playchess.com"]
[Source "ChessBase"]
[SourceQuality "1"]
[TimeControl "40/5400+30:900+30"]

1. d4 {[%emt 0:00:00]} d5 {[%emt 0:00:00]} 2. c4 {[%emt 0:00:00]} e6 {[%emt 0:00:00]} 3. Nc3 {[%emt 0:00:00]} Nf6 {[%emt 0:00:00]} 4. cxd5 {[%emt 0:00:25]} exd5 {[%emt 0:00:03]} 5. Bg5 {[%emt 0:01:21]} c6 {[%emt 0:00:09]} 6. Qc2 {[%emt 0:02:52]} Be7 {[%emt 0:00:30]} 7. e3 {[%emt 0:00:12] LiveBook: 1668 Games} Nbd7 {[%emt 0:00:13]} 8. Bd3 {[%emt 0:01:49]} O-O {[%emt 0:01:28]} 9. Nf3 {[%emt 0:02:41]} Re8 {[%emt 0:01:37]} 10. h3 {[%emt 0:07:32]} h6 {[%emt 0:14:56]} 11. Bf4 {[%emt 0:01:21]} Nf8 {[%emt 0:02:21]} 12. O-O-O {[%emt 0:09:58] D36: Damengambit (Abtauschvariante)} b5 {[%emt 0:09:03]} (12... Bb4 13. Nd2 Bxc3 14. Qxc3 Ne4 15. Nxe4 dxe4 16. Bc2 Be6 17. g4 a5 18. Bb3 a4 19. Bxe6 Nxe6 {0-1 (52) Narciso Dublan,M (2540)-Bracker,F (2407) Llucmajor 2016}) 13. g4 {[%emt 0:07:02]} Ne6 {[%emt 0:07:06]} 14. Bh2 $146 {[%emt 0:06:06]} ({Vorgänger:} 14. Ne2 Nxf4 15. Nxf4 Bb7 16. g5 hxg5 17. Nxg5 Qa5 18. Bh7+ Kf8 19. Qg6 {1-0 (19) Murtazin,B (2153)-Orolov,O (1539) Samara 2014}) 14... b4 {[%emt 0:04:47]} 15. Na4 {[%emt 0:04:37]} Bd7 {[%emt 0:09:04]} 16. Kb1 {[%emt 0:05:12]} Qa5 {[%emt 0:08:26]} 17. Rc1 {[%emt 0:04:54]} Rac8 {[%emt 0:02:29]} 18. Nc5 {[%emt 0:04:02]} Nxc5 {[%emt 0:02:57]} 19. dxc5 {[%emt 0:00:08]} Be6 $16 {[%emt 0:05:17]} (19... Ne4 $11 {hält das Gleichgewicht.}) 20. Nd4 {[%emt 0:04:01]} Nd7 {[%emt 0:03:45]} 21. Nb3 {[%emt 0:02:03]} Qd8 {[%emt 0:00:15]} 22. Ba6 {[%emt 0:01:12]} Bf6 {[%emt 0:02:26]} 23. Bxc8 {[%emt 0:02:12]} Qxc8 {[%emt 0:00:03]} 24. Nd4 {[%emt 0:02:52]} Ne5 {[%emt 0:02:51]} 25. Bxe5 {[%emt 0:03:25]} Bxe5 {[%emt 0:00:05]} 26. Nxe6 {[%emt 0:00:47]} Rxe6 {[%emt 0:00:36]} 27. h4 {[%emt 0:05:48]} a5 {[%emt 0:01:48]} 28. Rhg1 {[%emt 0:01:27]} Qe8 {[%emt 0:01:42]} 29. Qd1 {[%emt 0:03:49]} g6 {[%emt 0:02:26]} 30. Qd2 {[%emt 0:01:59]} Bg7 {[%emt 0:00:10]} 31. Qc2 {[%emt 0:04:09]} Re4 {[%emt 0:01:35]} 32. Qa4 {[%emt 0:01:02]} Qe5 {[%emt 0:00:08]} 33. Rc2 {[%emt 0:01:00]} Qc7 {[%emt 0:00:02]} 34. Qb3 {[%emt 0:01:50]} Qe7 {[%emt 0:00:39]} 35. h5 {[%emt 0:00:42]} g5 {[%emt 0:01:54]} 36. Qa4 {[%emt 0:04:25]} Qc7 {[%emt 0:00:30]} 37. Rd2 {[%emt 0:00:52]} Qh2 {[%emt 0:01:38]} 38. Re1 {[%emt 0:03:32]} Qc7 {[%emt 0:01:50]} 39. f3 {[%emt 0:01:07]} Rc4 {[%emt 0:05:06]} 40. Rc2 {[%emt 0:00:08]} Qg3 {[%emt 0:00:57]} 41. Rf1 {[%emt 0:09:05]} Qe5 {[%emt 0:03:19]} 42. Re1 {[%emt 0:01:43]} Qg3 {[%emt 0:01:45]} 43. Rf1 {[%emt 0:00:05]} Qe5 {[%emt 0:00:09]} 44. Re1 {[%emt 0:00:12]} 1/2-1/2